{"text_format":"3","workbook":"xlsx","n_sheets":10,"sheets":["Hinweise","Deckblatt","Vertretungsberechtigung","Sachausgaben","Angaben zu den Sachausgaben","Abschreibungen","Angaben zur Fachkraft","Personalausgaben","Ausgaben-u.Finanzierungsplan","Tabelle1"],"not_rendered":{"defined_names":8,"comments":6},"read":"whole","date_system":"1900"}

{"sheet":"Hinweise","index":0,"n_rows":25,"n_cols":8,"rows_kept":25,"merged":[[2,0,2,6],[4,0,4,7],[5,0,5,7],[6,0,6,7],[7,0,7,7],[8,0,8,7],[9,0,9,7],[10,0,10,7],[11,0,11,7],[12,0,12,7],[13,0,13,7],[14,0,14,7],[15,0,15,7],[16,0,16,7],[17,0,17,7],[18,0,18,7],[19,0,19,7],[20,0,20,7],[21,0,21,7],[22,0,22,7],[23,0,23,7],[24,0,24,7],[25,0,25,7]]}
["Landeshauptstadt Dresden - Jugendamt",{"$nulls":6},{"$f":"Deckblatt!U1","v":"Förderung von Trägern der freien Jugendhilfe"}]
[]
["Hinweise zum Antrag auf Gewährung einer Zuwendung"]
[]
["Aus Gründen der Lesbarkeit bedient sich dieses Formular der männlichen Schreibweise, schließt die weibliche Form der Begriffe jedoch selbstverständlich mit ein."]
["Rechtliche Grundlage der Förderung von Trägern der freien Jugendhilfe ist der § 74 SGB VIII und die diesen \n§ ausfüllenden Richtlinien und Vorschiften der Landeshauptstadt Dresden. Ein Rechtsanspruch auf die Gewährung einer Zuwendung ergibt sich daraus nicht."]
["Es können nur Angebote in der Landeshauptstadt Dresden für Dresdner Kinder, Jugendliche und junge Erwachsene, die durch in Dresden ansässige Träger der freien Jugendhilfe erbracht werden, gefördert werden. "]
["Angebote anderer Träger der freien Jugendhilfe, die überregional oder in anderen Gebietskörperschaften tätig sind, können gefördert werden, wenn sie den Bedarf von Dresdner jungen Menschen erfüllen und als Träger der freien Jugendhilfe nach § 75 SGB VIII anerkannt sind."]
["Die Förderung muss form- und fristgerecht in Papierform beantragt werden. Der Antrag muss vollständig sein. Antragsschluss ist der 31. August des Vorjahres des Antragsjahres."]
["Der Antrag besteht aus mehreren Tabellenblättern bzw. Seiten: Deckblatt, Vertretungsberechtigung, Sachausgaben, Angaben zu den Sachausgaben, Abschreibungen, Angaben zur Fachkraft, Personalausgaben, Ausgaben- und Finanzierungsplan"]
["Zuwendungen werden nur gewährt, wenn mit dem Vorhaben noch nicht begonnen wurde. Die Fortsetzung jährlich wiederkehrender Maßnahmen, bei deren Förderungsvoraussetzungen keine Änderungen eingetreten sind, gilt nicht als vorzeitiger Vorhabensbeginn. Vorzeitiger Vorhabensbeginn ist zu beantragen. Bei einer Zustimmung wird keine Entscheidung über die Bewilligung von Zuwendungen getroffen. "]
["Die im Antrag dargestellten Ausgaben müssen im direkten Zusammenhang mit der Maßnahme stehen. Ausgaben des Antragstellers, die ihm auch anfallen würden, wenn er diese hier zur Beantragung stehende Leistung nicht erbringt, sind nicht zuwendungsfähig."]
["Es ist ein Eigenanteil (Eigenmittel, Eigenleistungen) in Höhe von 5% der zuwendungsfähigen Ausgaben zu erbringen. Für ehrenamtliche Tätigkeit werden 8,50 EUR pro Stunde als Eigenleistung berücksichtigt."]
["Zur Förderung beantragte Fachkräfte:"]
["Voraussetzung für eine Förderung ist neben der Erfüllung der Qualifikationsanforderungen der Abschluss eines schriftlichen Arbeitsvertrages."]
["Die Qualifikationsnachweise sind dem Arbeitgeber im Original vorzulegen. Dem Jugendamt einzureichende Kopien sind mit dem Vermerk \"Das Original hat am ... (Datum) vorgelegen\" zu versehen."]
["Des Weiteren ist Grundlage für die Förderung einer Personalstelle die Bewertung der Tätigkeit und Feststellung der Entgeltgruppe nach TVöD. Zu diesem Zweck ist eine Stellenbeschreibung mit dem Antrag (sofern noch nicht erfolgt) einzureichen. Das Formular kann über den JugendInfoService/Fachkräfteportal der Landeshauptstadt Dresden unter der Rubrik \"Förderung der freien Jugendhilfe\" abgerufen werden."]
["Es gilt das Besserstellungsverbot. Demnach sind Personalausgaben nur im Rahmen des geltenden Tarifrechts für die Bediensteten der Landeshauptstadt Dresden zuwendungsfähig."]
["Ausfüllhinweise:"]
["Beginnen Sie mit dem Ausfüllen des Formulars beim Deckblatt."]
["Das Antragsformular enthält Zellverknüpfungen und selbstrechnende Felder. Fehlermeldungen sind erst nach dem vollständigen Ausfüllen der vorgesehenen Felder zu beachten."]
["Zahlen sind fortlaufend und ohne Freizeichen, Punkte oder Währung einzugeben."]
["Tabellenblätter, die nicht für die Antragstellung benötigt werden, sind nicht zu löschen; es sind nur die Tabellenblätter auszudrucken, die ausgefüllt wurden."]
["Druck: Auf Grund verschiedener PC-Einstellungen kann es vorkommen, dass an Ihrem PC für ein hier angelegtes Tabellenblatt 2 Seiten ausgedruckt werden. Bitte richten Sie die Seite neu ein (Menü: \"Ansicht\" -> \"Seitenumbruchvorschau\" -> mit der linken Maustaste die blauen Balken so verschieben, dass nur noch eine Seite angezeigt wird -> Menü: \"Ansicht\" -> \"Normal\"."]
["Bei Fragen zum Ausfüllen des Formulars wenden Sie sich an: N. Schuster, SB Zuschusswesen, Tel. 4884671, E-Mail: nschuster@dresden.de."]

{"sheet":"Deckblatt","index":1,"n_rows":54,"n_cols":21,"rows_kept":54,"merged":[[2,0,3,9],[2,11,3,20],[4,0,5,9],[5,11,7,20],[6,0,7,9],[8,0,9,9],[9,11,10,20],[20,0,20,15],[20,16,21,20],[21,0,21,15],[23,8,23,20],[25,8,25,14],[25,15,25,16],[25,17,25,18],[25,19,25,20],[27,0,29,7],[27,13,29,20],[28,8,29,12],[30,0,30,11],[30,13,30,20],[31,0,31,11],[31,13,31,20],[32,0,32,11],[32,13,32,20],[33,0,33,11],[33,13,33,20],[34,0,34,11],[34,13,34,20],[35,0,35,11],[35,13,35,20],[39,0,39,3],[39,4,39,6],[39,7,39,10],[39,11,39,13],[39,14,39,16],[39,17,39,20],[42,0,45,20],[48,0,48,20],[52,0,52,5],[52,15,52,20],[54,0,54,20]]}
["Landeshauptstadt Dresden - Jugendamt",{"$nulls":19},"Förderung von Trägern der freien Jugendhilfe"]
["Antragsteller:",{"$nulls":10},"Aktenzeichen (sofern bekannt)"]
[]
[]
[{"$nulls":11},"Maßnahmebezeichnung:"]
[]
[]
[]
[{"$nulls":11},"Anschrift des Angebotes (Durchführungsort)"]
[]
[]
[]
["Antrags- und Bewilligungsbehörde:                                                                                                                                                                                                                                                                                    ",{"$nulls":10},"Sitz:"]
["Landeshauptstadt Dresden",{"$nulls":10},"Dr.-Külz-Ring 19, 01067 Dresden"]
["Jugendamt, Abt. Kinder-, Jugend- und",{"$nulls":10},"Ansprechpartnerin:"]
["Familienförderung, SG Zuschusswesen",{"$nulls":10},"Frau Valerie Cohen"]
["Postfach 12 00 20",{"$nulls":10},"Tel.: 0351-488 4676 / Fax: 0351-488 4656"]
["01001 Dresden ",{"$nulls":10},"E-Mail: vcohen@dresden.de"]
[{"$nulls":11},"Sitz: Budapester Str. 30I. Etage, Zi. 90"]
[]
["Antrag auf Gewährung einer Zuwendung",{"$nulls":15},"Antragsschluss: \n31. August\n(des Antragsvorjahres)"]
[" - Maßnahmen der arbeitsweltbezogenen Jugendsozialarbeit -"]
[]
["Antragszeitraum:"]
[]
["Fördermittelantrag in Höhe von:",{"$nulls":7},{"$f":"'Ausgaben-u.Finanzierungsplan'!O9","v":0},{"$nulls":6},"EUR",null,{"$f":"Personalausgaben!D17","v":0},null,"VK"]
[]
["Erforderliche Unterlagen",{"$nulls":12},"Liegt dem Jugendamt bereits vor!\nDie Unterlagen müssen nicht erneut eingereicht werden, jedoch ist das Datum der aktuellen Fassung hier zu vermerken!"]
[{"$nulls":8},"Dem Antrag beigefügt:\n(wenn ja, ankreuzen)"]
[]
["Satzung/Gesellschaftervertrag"]
["aktueller Vereins-/Handelsregisterauszug"]
["Vertretungsberechtigung (Formular siehe Folgeblatt)"]
["Nachweis der Gemeinnützigkeit \n(i. d. R. Freistellungsbescheid des Finanzamtes)"]
["Anerkennung nach § 75 SGB VIII (sofern Förderung auf Dauer angelegt oder Träger anderer Gebietskörperschaft angehört)"]
["Konzeption/Projektbeschreibung (inkl. Qualitätsentwicklungsbeschreibung)"]
["Ansprechpartner"]
["für Förderung/Finanzen",{"$nulls":10},"für die sozialpädagogische/fachliche Arbeit im Angebot"]
["Name",{"$nulls":3},"Tel.-/Fax-Nr.",null,null,"Email-Adresse",{"$nulls":3},"Name",null,null,"Tel.-/Fax-Nr.",null,null,"Email-Adresse"]
[]
[]
["Erklärung "]
["Der  Antragsteller erklärt, dass die Angaben im Antrag (Deckblatt einschließlich allen Folgeseiten) vollständig und richtig sind; die Grundsätze einer sparsamen und wirtschaftlichen Haushaltsplanung eingehalten wurden; die Gewähr der zweckentsprechenden und wirtschaftlichen Verwendung der Mittel gegeben ist; die fachlichen Voraussetzungen für die geplante Maßnahme erfüllt werden; gemeinnützige Ziele verfolgt werden; die Gewähr für eine den Zielen des Grundgesetzes förderliche Arbeit gegeben ist."]
[]
[]
[]
[]
["Belehrung"]
["Der Antragsteller wird belehrt, dass die Ausgaben - sofern eine  Vorsteuerabzugsberechtigung vorliegt - ohne Umsatzsteuer anzugeben sind und Änderungen, die Auswirkungen auf den Antrag haben, unverzüglich und unaufgefordert anzuzeigen sind."]
[]
["Es liegt eine Vorsteuerabzugsberechtigung vor: ",{"$nulls":11},"  (falls zutreffend ankreuzen)"]
[]
[]
["Ort, Datum",{"$nulls":6},"rechtsverbindliche Unterschrift(en)",{"$nulls":7},"in PC-/Blockschrift"]

{"sheet":"Vertretungsberechtigung","index":2,"n_rows":54,"n_cols":19,"rows_kept":54,"merged":[[0,13,0,16],[1,11,1,14],[4,0,4,16],[9,3,9,16],[12,0,12,16],[13,18,19,21],[14,11,14,13],[14,14,14,16],[15,1,15,10],[15,14,15,16],[16,1,16,10],[16,14,16,16],[17,1,17,10],[17,14,17,16],[18,1,18,10],[18,14,18,16],[19,1,19,10],[19,14,19,16],[20,1,20,10],[20,14,20,16],[23,0,23,16],[24,5,24,16],[27,0,27,16],[28,11,29,13],[28,14,29,16],[30,1,30,10],[30,14,30,16],[31,1,31,10],[31,14,31,16],[32,1,32,10],[32,14,32,16],[35,4,35,16],[36,1,36,16],[38,1,38,11],[38,15,42,15],[39,1,39,11],[43,1,43,16],[46,14,46,16],[48,0,49,15],[50,0,50,13],[52,0,52,3],[52,12,52,16]]}
["Landeshauptstadt Dresden - Jugendamt",{"$nulls":7},"Fördermittelantrag",{"$nulls":3},"Az:",{"$f":"Deckblatt!L3","v":0}]
[{"$nulls":10},"Vertretungsregelung für das Jahr / die Jahre"]
[]
["Maßnahmeträger: (Name des Vereins/ der Körperschaft/Personenvereinigung)"]
[]
[]
["Der Maßnahmeträger ist:  (Zutreffendes ankreuzen)"]
[]
["rechtsfähig",{"$nulls":4},"nicht rechtsfähig",null,"und ggf. Teil des rechtsfähigen Trägers:"]
[]
[]
["Vertretungsregelung"]
["Vertretungsberechtiger Vorstand gemäß Satzung/Ordnung/Gesellschaftervertrag:"]
[{"$nulls":12},"Vertretungsberechtigung",{"$nulls":5},"In der Satzung ist festgelegt, ob der Verein durch eine oder mehrere Personen gleichzeitig nach innen und außen vertreten wird. Besteht für ein oder mehrere Vorstandsmitglieder das alleinige Vertretungsrecht, wird nur die Spalte \"allein\" angekreuzt. Kann der Verein nur durch mehrere Vorstandsmitglieder gleichzeitig vertreten werden, muss in der Spalte \"gemeinsam mit\" eingetragen werden, wer mit wem gemeinsam vertritt. Z. B.: \"2.\" oder \"2. oder 3. oder 4.\" (wenn jeweils 2 gemeinsam vertreten)"]
["Nr.","Name, Vorname, Funktion (z. B. Erster Vorsitzender)",{"$nulls":9},"allein\n(ankreuzen)",null,null,"gemeinsam mit \n(Nr. nennen)"]
["1."]
["2."]
["3."]
["4."]
["5."]
["6."]
[]
["Geschäftsführer:"]
["Der vertretungsberechtigte Vorstand hat gemäß Satzung/Ordung/Gesellschaftervertrag folgende Person "]
["zum Geschäftsführer ernannt:"]
[{"$nulls":5},"Name, Vorname"]
["Vollmacht/Unterschriftsberechtigung "]
["Die vertretungsberechtigte(n) Person(en) erteilen Untervollmachten an:"]
[{"$nulls":11},"allein\n(ankreuzen)",null,null,"gemeinsam mit \n(Nr. nennen)"]
["Name, Vorname, Funktion"]
["1."]
["2."]
["3."]
["Die Untervollmacht umfasst folgende Geschäfts- bzw. Verwaltungshandlungen (ankreuzen und ggf. ergänzen):"]
[" - für alle Angebote",{"$nulls":4},"fall zutreffen, ankreuzen"]
[" - für das/die Angebot(e)"]
[]
[]
[null," - Beantragung von Fördermitteln",{"$nulls":13},"(Zutreffendes ankreuzen)"]
[null," - Beantragung von Auszahlungen"]
[null," - Verwendungsnachweisführung"]
[null," - Einlegen von Rechtsmitteln (Widerspruch, Klage)"]
[null," - andere (benennen)"]
[]
[]
["Mitglieder des Stadtjugendring Dresden e. V.:"]
["Die Vollmacht zwischen der o. g. Träger und dem Stadtjugendring Dresden e. V. vom "]
[]
["hinsichtlich der Ermächtigung zu allen Verwaltungshandlungen, die Beantragung und Gewährung von Fördermitteln der Landeshauptstadt Dresden betreffend, behält ihre Gültigkeit: (ankreuzen)"]
[]
["Die aktuelle Vollmacht ist beigefügt: (ankreuzen)"]
[]
[]
["Ort, Datum",{"$nulls":4},"rechtsverbindliche Unterschrift(en)",{"$nulls":6},"in Block-/PC-Schrift"]

{"sheet":"Sachausgaben","index":3,"n_rows":63,"n_cols":21,"rows_kept":63,"merged":[[0,16,0,18],[1,8,1,10],[2,0,2,12],[2,13,2,15],[2,16,2,18],[3,0,14,0],[3,2,3,9],[3,10,3,12],[3,13,3,15],[3,20,5,24],[4,2,5,3],[4,6,4,9],[4,13,4,15],[5,13,5,15],[6,13,6,15],[7,13,7,15],[8,1,9,1],[8,2,9,7],[8,13,8,15],[9,13,9,15],[10,13,10,15],[11,13,11,15],[11,16,11,18],[12,13,12,15],[12,16,12,18],[13,13,13,15],[13,16,13,18],[14,13,14,15],[14,16,14,18],[15,0,22,0],[15,2,15,12],[15,13,16,15],[16,1,16,12],[17,1,22,1],[17,2,22,2],[17,3,17,12],[17,13,17,15],[18,3,18,12],[19,3,19,12],[19,16,19,18],[20,3,20,12],[20,13,20,15],[20,16,20,18],[21,3,21,12],[21,13,21,15],[21,16,21,18],[22,3,22,12],[22,13,22,15],[22,16,22,18],[23,0,33,0],[23,2,23,12],[23,13,23,15],[24,2,24,12],[24,13,25,15],[25,1,25,12],[26,2,26,12],[26,13,26,15],[27,2,27,12],[27,13,27,15],[27,19,29,29],[28,2,28,12],[28,13,28,15],[29,2,29,5],[29,7,29,8],[29,10,29,11],[29,13,29,15],[30,2,30,5],[30,7,30,8],[30,10,30,11],[30,13,30,15],[30,16,30,18],[31,1,33,1],[31,2,33,2],[31,3,31,12],[31,13,31,15],[31,16,31,18],[32,3,32,12],[32,13,32,15],[32,16,32,18],[33,3,33,12],[33,13,33,15],[33,16,33,18],[34,0,37,0],[34,2,35,12],[34,13,35,15],[34,16,34,18],[35,16,35,18],[36,2,37,12],[36,13,37,15],[36,16,36,18],[37,16,37,18],[38,13,38,15],[38,16,38,18],[39,13,39,15],[39,16,39,18],[40,0,40,18]]}
["Landeshauptstadt Dresden - Jugendamt",{"$nulls":8},{"$f":"Vertretungsberechtigung!I1","v":"Fördermittelantrag"},{"$nulls":5},"Az:",{"$f":"Deckblatt!L3","v":0}]
["Sachausgaben",{"$nulls":6},"Jahr:",2018]
[{"$nulls":13},"Ausgaben \nin EUR",null,null,"Fördermittelantrag\nin EUR"]
["1. Gebäude-/Bewirtschaftungsausgaben \n(für Flächen, die durch das Angebot genutzt werden)","1.","für die Maßnahme genutzte Fläche in qm:",{"$nulls":17},"Bei der Darstellung der Ausgaben sind nur die Flächen zugrunde zu legen, die von der Maßnahme genutzt werden."]
[null,"1.1","Miete \n(gemäß Vertrag) ",null,"Kaltmiete *1"]
[{"$nulls":4},"Betriebskosten "]
[null,"1.2","Weitere Betriebskosten einschl. Medien"]
[null,"1.3","Gebäudepacht/Erbbauzins *1"]
[null,"1.4","Nutzungsentgelte (stundenweise Nutzung, pauschale Abgeltung aller Ausgaben):",{"$nulls":5},"fremde Räume "]
[{"$nulls":8},"eigene Räume"]
[null,"1.5","Reinigungskosten/Hausverbrauchsmaterial/Müllentsorgung"]
[null,"1.6","Erhaltungsaufwand/Reparaturkosten bewegliche Sachen",{"$nulls":13},"Ausgaben 1. gesamt:"]
[null,"1.7","Werterhaltung/Reparaturkosten für Räume/Grundstück",{"$nulls":13},{"$f":"SUM(N5:P15)","v":0}]
[null,"1.8","Abschreibungen auf Gebäude",{"$nulls":13},"FM-Antrag zu 1.:"]
[null,"1.9","Gebühren/Beiträge/Steuern/Versicherungen Gebäude, Inventarversicherung"]
["2. Ausgaben im Rahmen der sozialpädagogischen Arbeit","2.1","Verbrauchsmaterialien u. bewegliche Sachen für die inhaltliche Arbeit (BS)\nBS mit einem Anschaffungswert über 410 EUR (oh. MwSt.) sind hier zu benennen:"]
[]
[null,"2.2","sonstige Ausgaben für die sozialpäd. Arbeit (benennen!)"]
[]
[{"$nulls":16},"Ausgaben 2. gesamt:"]
[{"$nulls":16},{"$f":"SUM(N16:P23)","v":0}]
[{"$nulls":16},"FM-Antrag zu 2.:"]
[]
["3. weitere Sachausgaben","3.1","Telekommunikation, Internetnutzung"]
[null,"3.2","Geringwert.Wirtschaftsgüter/bewegliche Sachen d.Anlagevermögens (BS)\nBS mit einem Anschaffungswert über 410 EUR (oh. MwSt) sind hier zu benennen:"]
[]
[null,"3.3","Ausgaben für Dienst-Kfz  (i. d. R. anteilig entsprechend dem Nutzungsanteil für die Maßnahme)"]
[null,"3.4","Dienstgänge: Fahrtkostenerstattung Nutzung Privat-Kfz / Stadtfahrten"]
[null,"3.5","Fort- u. Weiterbildungskosten (inkl. Reise- u. Übernachtungskosten) einschl. Fachtagungen/Supervision für haupt- u. nebenberufliche Mitarbeiter/-innen"]
[null,"3.6","Bundesfreiwilligendienst, Freiwilliges Soziales Jahr",{"$nulls":3},"*2","Anzahl der Personen:",null,null,"Anzahl aller Monate:"]
[null,"3.7","Aufwandsentschädigung Ehrenamtliche/Praktikanten",{"$nulls":3},"*2","Anzahl der Personen:",null,null,"Anzahl aller Monate:",{"$nulls":5},"Ausgaben 3. gesamt:"]
[null,"3.8","sonstige Sachausgaben (benennen!)\nz.B.Fachbücher",{"$nulls":13},{"$f":"SUM(N24:P34)","v":0}]
[{"$nulls":16},"FM-Antrag zu 3.:"]
[]
["4. Verwaltung","4.1","Verwaltungsaufwendungen im Angebot \n(Büromaterial, Porto, öff. Bekanntmachungen, Anschaffung/Leasing/Wartung Bürotechnik, Buchhaltung, Gehaltsberechnung)",{"$nulls":13},"Ausgaben 4. gesamt:"]
[{"$nulls":16},{"$f":"SUM(N35:P38)","v":0}]
[null,"4.2","Verwaltungsumlage (Sach- und Personalausgaben für zentrale Verwaltung, Planung, Steuerung und Kontrrolle; gilt nicht bei Geschäftsstellenförderung)",{"$nulls":13},"FM-Antrag zu 4.:"]
[]
[{"$nulls":13},"Gesamtausgaben:",null,null,"Fördermittelantrag:"]
[{"$nulls":13},{"$f":"SUM(N5:P38)","v":0},null,null,{"$f":"Q15+Q23+Q34+Q38","v":0}]
["*1 Der Vertrag ist, sofern im Jugendamt noch nicht vorliegend, mit einzureichen!\n*2 Zu diesen Ausgaben sind weitere Angaben notwendig siehe Folgeblatt \"Angaben zu den Sachausgaben\"."]
[]
[]
[]
[]
["Finanzierungsplan"]
["beantragte Zuwendung Jugendamt"]
["weitere öffentliche Mittel (EU/Bund/Land/AA/Kommune)"]
["Art: "]
[]
["sonstige Finanzierungsquellen"]
["Art: "]
[]
["Teilnehmerbeiträge"]
["weitere Eigenmittel"]
["gesamt",{"$nulls":12},{"$f":"SUM(N47:P55)","v":{"v":0,"d":"0.00"}}]
[]
["*1 Abgrenzung zu beweglichen Sachen des Anlagevermögens - vergleiche Formblatt BS-Antrag "]
[]
[]
[]
[]
["Ort, Datum",{"$nulls":5},"rechtsverbindliche Unterschrift(en)"]

{"sheet":"Angaben zu den Sachausgaben","index":4,"n_rows":12,"n_cols":18,"rows_kept":12,"merged":[[0,14,0,16],[2,0,2,16],[4,0,4,16],[5,1,5,16],[9,0,49,16],[13,17,18,20]]}
["Landeshauptstadt Dresden - Jugendamt",{"$nulls":8},{"$f":"Sachausgaben!J1","v":"Fördermittelantrag"},{"$nulls":3},"Az:",{"$f":"Deckblatt!L3","v":0}]
[]
["Notwendige Angaben zu den Sachausgaben"]
[]
["Folgende geplante Ausgaben bzw. Maßnhamen sind zu beschreiben:"]
["2.2","Honorare für Einzelprojektleitung: Beschreibung des Projektes, zeitlicher Umfang"]
["3.6","Bundesfreiwilligendienst: Welche Aufgaben sollen in der Maßnahme übernommen werden?"]
["3.7","Aufwandsentschädigungen: Welche Aufgaben sollen in der Maßnahme übernommen werden?"]
[]
[]
[]
[{"$nulls":17},"Mit Doppelklick ins Feld / Absatz einfügen: Alt und Enter gleichzeitig klicken"]

{"sheet":"Abschreibungen","index":5,"n_rows":18,"n_cols":6,"rows_kept":18,"merged":[[4,2,4,5],[6,0,6,2],[17,0,17,5]]}
["Landeshauptstadt Dresden - Jugendamt",null,null,{"$f":"'Angaben zu den Sachausgaben'!J1","v":"Fördermittelantrag"},null,{"$f":"Deckblatt!L3","v":0}]
[]
["Berechnung Abschreibungen auf Gebäude",{"$nulls":3},{"$f":"Sachausgaben!I2","v":2018},"(Jahr)"]
[]
["Gebäudeanschrift:"]
[]
["Nutzung des Gebäudes durch das Angebot:",{"$nulls":3},"%"]
[{"$nulls":3}," "]
[{"$nulls":3},"Brand-          versicherungs-          wert* von 1914","Baukosten-                  index","Wieder- beschaffungs-          wert"]
[{"$nulls":3},"in Mark",null,"in EUR"]
["Gebäude",{"$nulls":4},{"$f":"D11*E11","v":0}]
["Zubehör (technische Anlagen)",{"$nulls":4},{"$f":"D12*E12","v":0}]
[{"$nulls":4},"Summe",{"$f":"SUM(F11:F12)","v":0}]
["abzüglich öffentliche Zuschüsse seit 1991 - in EUR -"]
[{"$nulls":4},"Summe",{"$f":"F13-F14","v":0}]
[{"$nulls":4},"Summe x 2,45%",{"$f":"2.45*F15/100","v":0}]
[{"$nulls":4},"zuwendungsfähige Ausgaben im Jahr",{"$f":"D7*F16/100","v":0}]
["* Der Brandversicherungsnachweis ist, sofern er noch nicht im Jugendamt vorliegt, mit dem Antrag einzureichen!"]

{"sheet":"Angaben zur Fachkraft","index":6,"n_rows":66,"n_cols":22,"rows_kept":66,"merged":[[1,17,6,24],[2,13,2,14],[5,0,6,6],[5,7,6,14],[7,17,9,24],[8,0,8,4],[8,6,8,8],[8,10,8,14],[9,7,10,9],[10,17,13,24],[11,5,11,6],[11,7,11,9],[12,7,13,14],[15,0,16,8],[18,0,19,8],[21,0,22,8],[24,0,24,14],[27,0,27,1],[27,2,27,3],[27,6,27,8],[27,9,27,14],[30,8,31,13],[33,1,33,14],[34,0,34,10],[34,13,36,14],[35,12,36,12],[38,0,39,2],[38,3,38,4],[38,5,38,6],[38,7,38,8],[38,9,38,10],[38,11,38,12],[38,13,38,14],[41,0,41,2],[41,3,41,5],[41,11,41,13],[44,8,44,9],[47,0,47,2],[47,3,47,4],[47,5,47,6],[47,8,47,10],[47,11,47,12],[47,13,47,14],[47,16,47,18],[47,19,47,20],[47,21,47,22],[50,0,50,2],[50,3,50,4],[50,5,50,6],[50,8,50,10],[50,11,50,12],[50,13,50,14],[50,16,50,18],[50,19,50,20],[50,21,50,22],[53,0,53,2],[53,3,53,4],[53,5,53,6],[53,8,53,10],[53,11,53,12],[53,13,53,14],[55,4,56,7],[57,0,57,3],[57,4,57,6],[57,7,58,7],[57,8,58,9],[57,11,57,12],[57,13,58,14],[59,8,59,9],[59,13,59,14],[61,0,61,3],[61,4,62,8],[61,9,66,11],[61,12,66,14],[63,0,63,3],[63,4,64,8],[64,0,64,3],[65,4,66,8]]}
["Landeshauptstadt Dresden - Jugendamt",{"$nulls":7},"Förderung von Trägern der freien Jugendhilfe",{"$nulls":5},"Fördermittelantrag"]
[{"$nulls":17},"Das Blatt ist für jede Fachkraft auszufüllen und auszudrucken. Es enthält keine Verknüpfungen zum restlichen Formular. Sie können daher das Blatt entweder entsprechend dem Bedarf kopieren und in dieses Formular (Arbeitsmappe) einfügen oder Sie legen eine separate Datei an und können so Bestandsdaten (für kommende Anträge) weiter verwenden."]
[{"$nulls":6},"Datenblatt Fachkraftförderung",{"$nulls":4},"Förderjahr",null,{"$f":"Sachausgaben!I2","v":2018}]
[]
["Träger",{"$nulls":6},"Angebotsbezeichnung/Aktenzeichen (sofern bekannt)"]
[]
[]
["Name, Vorname",{"$nulls":5},"Geburtsdatum",{"$nulls":3},"Stellen-/ Tätigkeitsbezeichnung",{"$nulls":6},"Blatt kopieren: Mit dem Maus-Pfeil auf den Tabellenreiter (unten) gehen -> rechte Maustaste klicken -> im sich öffnenden Fenster \"Verschieben/kopieren...\" anklicken -> im sich öffnenden Fenster bei \"Kopie erstellen\" Feld klicken -> im Feld \"Einfügen vor ...\" Platz auswählen und \"OK\" klicken"]
[]
[{"$nulls":7},"Zutreffendes ankreuzen!"]
["Stellenbeschreibung",{"$nulls":3},"dem Antrag beigefügt",{"$nulls":12},"Blatt als neue Datei anlegen: Mit dem Maus-Pfeil auf den Tabellenreiter (unten) gehen -> rechte Maustaste klicken -> im sich öffnenden Fenster \"Verschieben/kopieren...\" anklicken -> unter dem Aufruf \"ausgewählte Blätter verschieben Zur Mappe\" schwarzen Pfeil klicken und im sich öffnenden Fenster (neue Arbeitsmappe) anklicken"]
[null,"liegt dem Jugendamt vor, dann",{"$nulls":3},"Stellenbeschrei- bung vom:",{"$nulls":4},"behält ihre Gültigkeit:"]
[{"$nulls":7},"Ist die im Jugendamt vorliegende Stellenbeschreibung nicht mehr gültig, muss eine neue eingereicht werden."]
["Ausbildung"]
["Abschluss (bei sozialpäd. Studienabschluss Angaben zur staatlichen Anerkennung ja/nein)"]
[{"$nulls":9},"Kopie des Abschlusses (auch Anerkennungsurkunde)"]
[{"$nulls":10},"beigefügt",null,"liegt dem Jugendamt vor"]
["berufsbegleitende Ausbildung:"]
[{"$nulls":9},"Immatrikulationsbescheinigung"]
[{"$nulls":10},"beigefügt",null,"liegt dem Jugendamt vor"]
["Zusatzqualifikationen:"]
[{"$nulls":9},"Kopie(n)"]
[{"$nulls":10},"beigefügt",null,"liegt dem Jugendamt vor"]
[]
["Die kopierten Qualifikationsnachweise sind vom Arbeitgeber mit dem Vermerk \"Das Original hat am ... (Datum) vorgelegen\"  zu versehen. "]
["Vergütung"]
[null,"in Anlehnung an den Tarif öffentlicher Dienst (TVöD bzw. TVÜ-VKA)",{"$nulls":8},"anderer Tarifvertrag (Bezeichnung)"]
["Entgeltgruppe/\nStufe",{"$nulls":5},"übergeleitete(r)  Beschäftigte(r)"]
[]
["Sozialdaten (nur für \"übergeleitete Beschäftigte\")"]
["Familienstand:",null,null,"ledig","            verheiratet",null," verwitwet",null,"Ehepartner im öffentlichen Dienst  bzw. nach dem Überleitungstarifvertrag des TVöD vergütet:"]
["Stichtag 30.09.2005",null,null,"geschieden"]
[]
["Kinder: ","(Angaben sind für alle übergeleitete Beschäftigte zu leisten; es sind nur die Kinder zu berücksichtigen, die bis zum 31.12.2005 geboren wurden)"]
["1. Anzahl der Kinder, für welche der/die Beschäftigte im Antragszeitraum Kindergeld erhält:"]
["                       "]
[]
[]
["Geb.daten der zu berücksichtigenden Kinder:"]
[{"$nulls":3},"1. Kind",null,"2. Kind",null,"3. Kind",null,"4. Kind",null,"5. Kind",null,"6. Kind"]
["Beschäftigungszeit"]
["in der o. g. Tätigkeit beschäftigt seit: ",{"$nulls":5},"Aufnahme der Tätigkeit im Angebot am:"]
[]
["Arbeitsumfang ",null,null,{"$f":"N3","v":2018},{"$nulls":4},"Jahresdurchschnitt:",{"$nulls":3},"in VK:"]
["Regelmäßige wöchentliche Arbeitszeit:",{"$nulls":7},{"$f":"ROUND((F48/12*D48)+(N48/12*L48)+(F51/12*D51)+(N51/12*L51)+(F54/12*D54)+(N54/12*L54),2)","v":0},null,"h/Woche",null,{"$f":"ROUND(I45/40,2)","v":0},{"$nulls":3},"Bsp.:"]
[]
["Datum (von - bis)",null,null," in Monaten",null,"Std./Woche",null,null,"Datum (von - bis)",null,null," in Monaten",null,"Std./Woche",null,null,"Datum (von - bis)",null,null," in Monaten",null,"Std./Woche"]
[{"$nulls":16},"01.01. - 31.03.",null,null,{"v":3,"d":"3.00"},null,"20"]
[]
["Datum (von - bis)",null,null," in Monaten",null,"Std./Woche",null,null,"Datum (von - bis)",null,null," in Monaten",null,"Std./Woche",null,null,"Datum (von - bis)",null,null," in Monaten",null,"Std./Woche"]
[{"$nulls":16},"01.04. - 15.10.",null,null,{"v":6.5,"d":"6.50"},null,"40"]
[]
["Datum (von - bis)",null,null," in Monaten",null,"Std./Woche",null,null,"Datum (von - bis)",null,null," in Monaten",null,"Std./Woche"]
[]
[]
["Lohnnebenkosten etc.",{"$nulls":3},"geringfügig beschäftigt (Minijob)"]
[]
["AG-Anteile SV in %",{"$nulls":3},"Umlage-Verfahren der Krankenkassen in %",null,null,"S","AG-Anteile ges. in EUR",null,null,"VWL in EUR",null,"bAV/Jahr                 in EUR"]
["PV","RV","AV","KV","U1","U2","IU",{"$nulls":4},"im Monat","im Jahr"]
[{"$nulls":7},{"$f":"SUM(A60:G60)","v":0}]
[]
["PV: Pflegeversicherung                                ",{"$nulls":3},"U1: Lohnfortzahl.verfahren der Krankenkassen im Krankheitsfall",{"$nulls":4},"VWL: Vermögens- \nwirksame Leistungen für\n1,0 VK > max. 6,65 € pro Monat",null,null,"bAV: die Arbeitgeberaufwen-\ndungen für eine betriebl. Altersvorsorge sind max. in Höhe der städtischen Altersvorsorge (ZVK) zuwendungsfähig. "]
["RV: Rentenversicherung"]
["AV: Arbeitslosenversicherung                        ",{"$nulls":3},"U2: Lohnfortzahlungsverfahren der Krankenkassen bei Mutterschaft"]
["KV: Krankenversicherung"]
[{"$nulls":4},"IU: Insolvenzgeldumlage an die KK (ausgenommen Körperschaften des öff. Rechts)"]

{"sheet":"Personalausgaben","index":7,"n_rows":22,"n_cols":13,"rows_kept":22,"merged":[[4,1,4,3],[4,4,4,6],[4,7,4,8],[4,9,4,10],[5,1,5,3],[5,4,5,6],[5,7,5,8],[5,9,5,10],[6,1,6,3],[6,4,6,6],[6,7,6,8],[6,9,6,10],[7,1,7,3],[7,4,7,6],[7,7,7,8],[7,9,7,10],[8,1,8,3],[8,4,8,6],[8,7,8,8],[8,9,8,10],[9,1,9,3],[9,4,9,6],[9,7,9,8],[9,9,9,10],[10,1,10,3],[10,4,10,6],[10,7,10,8],[10,9,10,10],[11,1,11,3],[11,4,11,6],[11,7,11,8],[11,9,11,10],[12,1,12,3],[12,4,12,6],[12,7,12,8],[12,9,12,10],[13,1,13,3],[13,4,13,6],[13,7,13,8],[13,9,13,10],[14,1,14,3],[14,4,14,6],[14,7,14,8],[14,9,14,10],[15,1,15,8],[15,9,15,10],[16,0,16,2],[16,3,16,4],[16,6,16,7],[16,9,16,10],[18,0,18,11],[20,0,20,11],[21,0,24,11]]}
["Landeshauptstadt Dresden - Jugendamt",{"$nulls":5},{"$f":"Vertretungsberechtigung!I1","v":"Fördermittelantrag"},{"$nulls":3},"Az:",{"$f":"Deckblatt!L3","v":0}]
[]
[{"$nulls":6},"Personalausgaben",null,null,{"$f":"Sachausgaben!I2","v":2018}]
[]
["Blatt","Name, Vorname",null,null,"Stellenbezeichnung",null,null,"Arbeitszeit\nh/Woche*",null,"Ausgaben                   in EUR",null,"Bearbeitungs-\nvermerk "]
[1]
[2]
[3]
[4]
[5]
[6]
[7]
[8]
[9]
[10]
[null,"Berufsgenossenschaft**                                                                                                                          "]
["gesamt",null,null,{"$f":"G17/40","v":0},null,"VK",{"$f":"SUM(H6:I15)","v":0},null,"h",{"$f":"SUM(J6:K16)","v":0}]
["* regelmäßige wöchentliche Arbeitszeit als Jahresmittel"]
["** Es sind nur die Ausgaben für Berufsgenossenschaft zu beantragen, die im Antragsjahr voraussichtlich anfallen werden (i. d. Regel Beiträge, die im Rahmen der im Vorjahr geförderten Beschäftigten entstehen und 2018 nach dem 28.2. fällig werden)."]
[]
["Welche Person soll nur teilweise oder gar nicht aus Mitteln der LHD Dresden gefördert werden? Förderquelle?\nPlatz für andere Bemerkungen des Antragstellers"]
[{"$nulls":12},"Mit Doppelklick ins Feld / Absatz einfügen: Alt und Enter gleichzeitig klicken"]

{"sheet":"Ausgaben-u.Finanzierungsplan","index":8,"n_rows":21,"n_cols":20,"rows_kept":21,"merged":[[0,15,0,18],[2,14,2,16],[4,0,5,3],[4,4,4,8],[4,9,4,13],[4,14,4,18],[5,4,5,7],[5,9,5,12],[5,14,5,17],[5,20,5,23],[7,0,7,3],[7,4,7,8],[7,9,7,13],[7,14,7,18],[8,0,8,3],[8,4,8,7],[8,9,8,12],[8,14,8,17],[9,0,9,3],[9,4,9,7],[9,9,9,12],[9,14,9,17],[10,0,10,3],[10,4,10,7],[10,9,10,12],[10,14,10,17],[11,0,11,3],[11,4,11,7],[11,9,11,12],[11,14,11,17],[12,0,12,3],[12,4,12,7],[12,9,12,12],[12,14,12,17],[14,0,15,3],[14,4,14,8],[14,9,14,13],[14,14,14,18],[15,4,15,8],[15,9,15,13],[15,14,15,18],[15,19,17,23],[16,0,17,3],[16,4,16,8],[16,9,16,13],[16,14,16,18],[17,4,17,8],[17,9,17,13],[17,14,17,18],[19,0,19,18],[20,0,21,18]]}
["Landeshauptstadt Dresden - Jugendamt",{"$nulls":8},{"$f":"Personalausgaben!G1","v":"Fördermittelantrag"},{"$nulls":4},"Az:",{"$f":"Deckblatt!L3","v":0}]
[]
[{"$nulls":4},"Ausgaben- und Finanzierungsplan",{"$nulls":9},{"$f":"Sachausgaben!I2","v":2018},null,null,"(Jahr)"]
[]
["Ausgaben",{"$nulls":3},"Personalausgaben",{"$nulls":4},"Sachausgaben",{"$nulls":4},"Gesamtausgaben"]
[{"$nulls":4},{"$f":"Personalausgaben!J17","v":0},{"$nulls":3},"EUR",{"$f":"Sachausgaben!N40","v":0},{"$nulls":3},"EUR",{"$f":"SUM(E6:M6)","v":0},{"$nulls":3},"EUR"]
[]
["Finanzierung",{"$nulls":3},"Personalausgaben",{"$nulls":4},"Sachausgaben",{"$nulls":4},"gesamt"]
["Fördermittelantrag Jugendamt Dresden",{"$nulls":7},"EUR",{"$f":"Sachausgaben!Q40","v":0},{"$nulls":3},"EUR",{"$f":"E9+J9","v":0},{"$nulls":3},"EUR"]
["weitere öffentliche Mittel*",{"$nulls":7},"EUR",{"$nulls":4},"EUR",{"$f":"SUM(E10:M10)","v":0},{"$nulls":3},"EUR"]
["sonstige Finanzierungsquellen",{"$nulls":7},"EUR",{"$nulls":4},"EUR",{"$f":"SUM(E11:M11)","v":0},{"$nulls":3},"EUR"]
["Eigenmittel",{"$nulls":7},"EUR",{"$nulls":4},"EUR",{"$f":"SUM(E12:M12)","v":0},{"$nulls":3},"EUR"]
["gesamt",{"$nulls":3},{"$f":"E9+E10+E11+E12","v":0},{"$nulls":3},"EUR",{"$f":"SUM(J9:M12)","v":0},{"$nulls":3},"EUR",{"$f":"SUM(E13:M13)","v":0},{"$nulls":3},"EUR"]
[{"$nulls":7},{"$f":"IF(E6<>E13,\"Fehler: Ausgaben ungleich Finanzierung\",\"\")","v":""},null,{"$f":"IF(J6<>J13,\"Fehler: Ausgaben ungleich Finanzierung\",\"\")","v":""},{"$nulls":9},"Fehlermeldung erst beachten, wenn das Ausfüllen beendet ist."]
["Eigenleistungen",{"$nulls":3},"Anzahl der Stunden",{"$nulls":4},{"v":8.5,"d":"8.50 €"},{"$nulls":4},"in EUR"]
[{"$nulls":9},"je Stunde",{"$nulls":4},{"$f":"E16*J15","v":0},{"$nulls":4},"Die Eigenleistungen werden ihrem geldwerten Betrag entsprechend in der Berechnungsformel \"Eigenanteil in %\" auf der Ausgabenseite zu den Gesamtausgaben hinzu gerechnet und auf der Einnahmenseite bei der Berechnung des prozentualen Eigenanteils neben den Eigenmitteln mit berücksichtigt."]
["Eigenanteil",{"$nulls":3},"Eigenmittel in %",{"$nulls":4},"Eigenleistungen in %",{"$nulls":4}," = Eigenanteil in %"]
[{"$nulls":4},{"$f":"ROUND(O12*100/O6,1)","v":{"$error":"#DIV/0!"}},{"$nulls":4},{"$f":"ROUND(O16*100/(O6+O16),1)","v":{"$error":"#DIV/0!"}},{"$nulls":4},{"$f":"ROUND((O16+O12)*100/(O6+O16),1)","v":{"$error":"#DIV/0!"}}]
[]
["* Sofern neben der beantragten Zuwendung weitere öffentliche Mittel in die Finanzierung dieses Projektes einfließen werden, sind diese hier darzustellen: für wen/was und in welcher Höhe (z. B. vom Landesjugendamt, KSV, SMS, SMK, Bund, ARGE, EU, LHD)"]
[{"$nulls":19},"Mit Doppelklick ins Feld / Absatz einfügen: Alt und Enter gleichzeitig klicken"]

{"sheet":"Tabelle1","index":9,"n_rows":0,"n_cols":0,"rows_kept":0}